Workbook

Sheet apuntes (hidden)
A1: 1 | B1: comieron sopa pescado huevos y postre | C1: comieron sopa, pescado, huevos y postre
A2: =A1+1 -> 2 | B2: aun no he comido | C2: aún no he comido | D2: lleva acento cuando puede substituirse por (todavía)
A3: =A2+1 -> 3 | B3: aun los tontos lo comprenden | C3: aun los tontos lo comprenden | D3: no se acentúa cuando no puede substituirse por todavía
A4: 4 | B4: solo aguardo el aviso | C4: sólo aguardo el aviso | D4: puede acentuarse cuando es adverbio y equivale a solamente o únicamente
A5: 5 | B5: canto un solo | C5: cantó un solo | D5: no se acentúa cuando es nombre o adjetivo (sin compañía)
A6: 6 | B6: llego solo | C6: llegó solo | D6: no se acentúa cuando es nombre o adjetivo (sin compañía)
A7: 7 | B7: un solo aparato regreso | C7: un sólo aparato regresó | D7: puede acentuarse cuando es adverbio y equivale a solamente o únicamente
A8: 8 | B8: quiero mas carbon | C8: quiero más carbón
A9: 9 | B9: el mas y el menos | C9: el más y el menos
A10: 10 | B10: dame esto más no aquello | C10: dame esto mas no aquello | D10: no se acentúa cuando es conjunción. En tal caso puede substituirse por (pero)
A11: 11 | B11: ha venido el pero no ella | C11: ha venido él pero no ella | D11: se acentúa cuando es pronombre personal, o sea, cuando substituye al nombre
A12: 12 | B12: el nos lo dijo | C12: él nos lo dijo
A13: 13 | B13: el niño cogio el libro y lo entrego a el | C13: el niño cogió el libro y lo entregó a él | D13: se acentúa cuando es pronombre personal, o sea, cuando substituye al nombre
A14: 14 | B14: el lo recogio y lo guardo para entregarlo a su padre | C14: él lo recogió y lo guardó para entregarlo a su padre
A15: 15 | B15: tu no sabes la alegria que le dio al recibir este obsequio tan hermoso de mi hijo Mario | C15: tú no sabes la alegría que le dio al recibir este obsequio tan hermoso de mi hijo Mario
A16: 16 | B16: mi buena hermana compro para mi la entrada del cine que debia ser para ella | C16: mi buena hermana compró para mí la entrada del cine que debía ser para ella
A17: 17 | B17: estos se llevaron todas las plumas | C17: éstos se llevaron todas las plumas
A18: 18 | B18: solo leo cuando voy a dormir | C18: sólo leo cuando voy a dormir
A19: 19 | B19: oi un solo que solo puede tocarlo ese magnifico violinista | C19: oí un solo que sólo puede tocarlo ese magnífico violinista | D19: unicamente
A20: 20 | B20: fui a pasear con el | C20: fui a pasear con él
A21: 21 | B21: le parecia ridiculo el acerlo | C21: le parecía ridículo el hacerlo
A22: 22 | B22: no de mas caramelos a los niños | C22: no dé más caramelos a los niños | D22: lleva acento cuando es adverbio de cantidad o comparación o nombre
A23: 23 | B23: pues se que les perjudican | C23: pues sé que les perjudican
A24: 24 | B24: comeis y cantais | C24: coméis y cantáis
A25: 25 | B25: si vas a Avila podras admirar sus ermosos monumentos | C25: si vas a Ávila podrás admirar sus hermosos monumentos
A26: 26 | B26: tu deberias preparar el te | C26: tú deberías preparar el té
A27: 27 | B27: aun no he visto aquello | C27: aún no he visto aquello | D27: todavia
A28: 28 | B28: aun podremos solucionarlo | C28: aún podremos solucionarlo | D28: todavía
A29: 29 | B29: deseo aun mas libros para leer | C29: deseo aún más libros para leer | D29: todavía cantidad
A30: 30 | B30: Pedro desea aun comprar mas libros | C30: Pedro desea aún comprar más libros | D30: todavía
A31: 31 | B31: solo he salido para eso | C31: sólo he salido para eso | D31: lleva acento cuando puede substituirse por (unicamente)
A32: 32 | B32: todo lo demas aun no me interesa | C32: todo lo demás aún no me interesa | D32: puede sustituirse por (todavía)
A33: 33 | B33: el porque de lo sucedido no puedo saberlo hoy | C33: el porqué de lo sucedido no puedo saberlo hoy
A34: 34 | B34: devolvi a don Hilario los seis duros que me presto | C34: devolví a don Hilario los seis duros que me prestó
A35: 35 | B35: lograndose conjuntos muy armonicos | C35: lográndose conjuntos muy armónicos
A36: 36 | B36: lo mio lo tuyo y lo de el todo lo quiere para si | C36: lo mio, lo tuyo y lo de él, todo lo quiere para sí
A37: 37 | B37: ¿ donde esta el vestido ? | C37: ¿ dónde está el vestido ?
A38: 38 | B38: debeis estudiar mas si quereis aprobar en junio proximo | C38: debéis estudiar más si queréis aprobar en junio próximo
A39: 39 | B39: no se quien a podido decir semejante cosa | C39: no sé quien ha podido decir semejante cosa
A40: 40 | B40: ¿ no as comprendido aun que es necio servir al que paga mal ? | C40: ¿ no has comprendido aún que es necio servir al que paga mal ?
A41: 41 | B41: abitualmente resido en Alava | C41: habitualmente resido en Álava
A42: 42 | B42: esto no es para mi, pero aquello si lo es | C42: esto no es para mí, pero aquello sí lo es
A43: 43 | B43: se bueno, y tendras tu reconpensa | C43: sé bueno, y tendrás tu recompensa
A44: 44 | B44: yo no se lo que quiere decir | C44: yo no sé lo que quiere decir | D44: lleva acento cuando es verbo (ser o saber)
A45: 45 | B45: se estudiosa | C45: sé estudiosa | D45: lleva acento cuando es verbo (ser o saber)
A46: 46 | B46: ella se puso a estudiar y se entusiasmo | C46: ella se puso a estudiar y se entusiasmó | D46: no lleva acento cuando es pronombre
A47: 47 | B47: no se escribieron mas | C47: no se escribieron más
A48: 48 | B48: lleva un saco acuestas | C48: lleva un saco a cuestas | D48: modo de llevar algo
A49: 49 | B49: te a cuestas tarde | C49: te acuestas tarde | D49: verbo acostarse
A50: 50 | B50: se irio asimismo | C50: se hirió a sí mismo | D50: a su propia persona
A51: 51 | B51: ellos llegaran, a si mismo, a las doce | C51: ellos llegarán, asimismo, a las doce | D51: también, del mismo modo, de igual manera
A52: 52 | B52: asi mismo esta bien | C52: así mismo está bien | D52: de esta manera
A53: 53 | B53: llegue a un pueblo | C53: llegué a un pueblo
A54: 54 | B54: No a llegado aun | C54: No ha llegado aún
A55: 55 | B55: vinieron todos, aún los ancianos | C55: vinieron todos, aun los ancianos | D55: también hasta
A56: 56 | B56: es del verbo aber | C56: es del verbo haber
A57: 57 | B57: abiendo tanto no faltara | C57: habiendo tanto no faltará
A58: 58 | B58: no a abido lugar a ello | C58: no ha habido lugar a ello
A59: 59 | B59: con aber abido tanto no a sido suficiente | C59: con haber habido tanto no ha sido suficiente
A60: 60 | B60: no a abido lugar a ello | C60: no ha habido lugar a ello
A61: 61 | B61: abiendo de ver luego el partido, no salgamos aora | C61: habiendo de ver luego el partido, no salgamos ahora
A62: 62 | B62: voy a ver a mi ermana | C62: voy a ver a mi hermana
A63: 63 | B63: e de ver si esta el verbo aber | C63: he de ver si está el verbo haber
A64: 64 | B64: a ver si vienes | C64: a ver si vienes | D64: a no lleva H cuando es preposición, voy a pasear, he ido a saltar, voy a casa
A65: 65 | B65: ve a ver si esta en casa | C65: ve a ver si está en casa | D65: a no lleva H cuando es preposición, voy a pasear, he ido a saltar, voy a casa
A66: 66 | B66: yo e comido tanto que me a echo daño | C66: yo he comido tanto que me ha hecho daño
A67: =A66+1 -> 67 | B67: as de saber, amigo Vicente, que emos andado toda la jornada | C67: has de saber, amigo Vicente, que hemos andado toda la jornada
A68: 68 | B68: vosotros abreis de ir como lo an echo ellos | C68: vosotros habréis de ir como lo han hecho ellos
A69: 69 | B69: a abido una discusion y no as de preguntar nada | C69: ha habido una discusión y no has de preguntar nada
A70: 70 | B70: an de aber cantado muy fuerte | C70: han de haber cantado muy fuerte
A71: 71 | B71: no abia nada cuando tu abias regresado | C71: no había nada cuando tú habías regresado
A72: 72 | B72: ¿ te gustaria tomar el te en aquel parador tan magnifico que ay en las cercanias de Tuy ? | C72: ¿ te gustaría tomar el té en aquel parador tan magnífico que hay en las cercanías de Tuy ?
A73: 73 | B73: aun no a traido la maquina que dijeron traerian ayer | C73: aún no ha traído la máquina que dijeron traerían ayer
A74: 74 | B74: mas el director a dicho que el se encargara personalmente del asunto | C74: mas el director ha dicho que él se encargará personalmente del asunto
A75: 75 | B75: y confia que hoy quedara lista | C75: y confía que hoy quedará lista
A76: 76 | B76: es el verbo aber | C76: es el verbo haber
A77: 77 | B77: abiendo tanto no faltara | C77: habiendo tanto no faltará
A78: 78 | B78: con aber abido tanto no a sido suficiente | C78: con haber habido tanto no ha sido suficiente
A79: 79 | B79: buscalo ai | C79: búscalo ahí | D79: adverbio de lugar
A80: 80 | B80: por aí lo encontraras | C80: por ahí lo encontrarás | D80: adverbio de lugar
A81: 81 | B81: ay mucha gente | C81: hay mucha gente | D81: verbo haber
A82: 82 | B82: ay ahí un ombre que dice ai | C82: ahí hay un hombre que dice ay
A83: 83 | B83: no ay nada que acer aqui | C83: no hay nada que hacer aquí
A84: 84 | B84: abitantes | C84: habitantes
A85: 85 | B85: a estallado una uelga inponente | C85: ha estallado una huelga imponente | D85: antes de b y p m pondré
A86: 86 | B86: el uerfano a pasado la noche en el uerto | C86: el huerfano ha pasado la noche en el huerto | D86: ha verbo se puedea pasar al plural (han)
A87: 87 | B87: con sus erramientas izo un erraje muy solido | C87: con sus herramientas hizo un herraje muy sólido
A88: 88 | B88: el campo estaba muy ermoso | C88: el campo estaba muy hermoso
A89: 89 | B89: la erencia que eredo el eredero menor tiene catorce ectareas de uerta | C89: la herencia que heredó el heredero menor tiene catorce hectáreas de huerta
A90: 90 | B90: con la navaja se izo un erida muy onda | C90: con la navaja se hizo una herida muy honda
A91: 91 | B91: estas plantas erbaceas ermosearon nuestro jardin | C91: estas plantas herbaceas hermosearon nuestro jardín
A92: 92 | B92: el encontro un erizo entre las ierbas | C92: él encontró un erizo entre las hierbas | D92: él (pronombre personal sustituye el nombre)
A93: 93 | B93: Ipolito decia que su ermano era mas abil | C93: Hipólito decía que su hermano era más hábil
A94: 94 | B94: al cirujano especialista en operar ernias se le llama ernista | C94: al cirujano especialista en operar hernias se le llama hernista
A95: 95 | B95: azlo breve y sin cometer ningun error | C95: hazlo breve y sin cometer ningún error
A96: 96 | B96: abichuela | C96: habichuela
A97: 97 | B97: la uerta se alla ermosa | C97: la huerta se halla hermosa
A98: 98 | B98: seguimos las uellas y llegamos asta la entrada de la cueva | C98: seguimos las huellas y llegamos hasta la entrada de la cueva
A99: 99 | B99: abia montones de uesos | C99: había montones de huesos
A100: 100 | B100: lleva un saco acuestas | C100: lleva un saco a cuestas | D100: modo de llevar algo (a cuestas)
A101: 101 | B101: te a cuestas tarde | C101: te acuestas tarde | D101: del verbo acostarse (acuestas)
A102: 102 | B102: se irio a si mismo | C102: se hirió a sí mismo | D102: a su propia persona
A103: 103 | B103: ellos llegaran, asi mismo, a las doce | C103: ellos llegarán, asimismo, a las doce | D103: también,del mismo modo,de igual manera
A104: 104 | B104: asi mismo esta bien | C104: así mismo está bien | D104: de esta manera
A105: 105 | B105: llegue a un pueblo | C105: llegué a un pueblo | D105: preposición y artículo
A106: 106 | B106: no a llegado aun | C106: no ha llegado aún | D106: todavía (no ha llegado dodavía)
A107: 107 | B107: vinieron todos, aun los ancianos | C107: vinieron todos, aun los ancianos | D107: también,hasta
A108: 108 | B108: el pelo de Luis es mas corto aun que el de Juan | C108: el pelo de Luis es más corto aún que el de Juan | D108: para realizar conparaciones
A109: 109 | B109: aunque no a llegado,comenzaremos | C109: aunque no ha llegado, comenzaremos | D109: a pesar de que (a pesar de que no ha llegado, comenzaremos)
A110: 110 | B110: ese adjetivo esta de mas | C110: ese adjetivo está de más | D110: de sobra
A111: 111 | B111: le tengo dicho que no le de mas caramelos | C111: le tengo dicho que no le dé más caramelos | D111: del verbo dar
A112: 112 | B112: los demas no cantaban | C112: los demás no cantaban | D112: adverbio
A113: 113 | B113: entre tanto papel, no me aclaro | C113: entre tanto papel, no me aclaro | D113: entre muchos
A114: 114 | B114: entre tanto lo desembalan, desallunaremos | C114: entretanto lo desembalan, desayunaremos | D114: mientras (mientras lo desembalan)
A115: 115 | B115: desenbalan | C115: desembalan | D115: antes de b y p (m) pondré
A116: 116 | B116: el codigo porque se rije la comunidad es reciente | C116: el código por que se rige la comunidad es reciente | D116: por el cual, por la cual ( el código por la cual se rige)
A117: 117 | B117: lloraba por qué estava triste | C117: lloraba porque estaba triste | D117: a causa de (lloraba a causa de que estaba triste)
A118: 118 | B118: el sabe por que lo a echo | C118: él sabe por qué lo ha hecho | D118: por un motivo concreto (él sabe el motivo)
A119: 119 | B119: el jersey esta echo de lana | C119: el jersey está hecho de lana | D119: hecho de hacer, echo de echar
A120: 120 | B120: no conosco el por que de este informe | C120: no conozco el porqué de este informe | D120: motivo, causa o razón
A121: 121 | B121: tanto que hacer me abruma | C121: tanto quehacer me abruma | D121: tarea (que hacer) pronimbre indefinido y verbo hacer
A122: 122 | B122: el negocio salio tanbien que repetimos | C122: el negocio salió tan bien que repetimos | D122: en sentido comparativo
A123: 123 | B123: el telegrama tanbien a salido hoy | C123: el telegrama también ha salido hoy | D123: adverbio
A124: 124 | B124: llueve tanpoco que todo esta seco | C124: llueve tan poco que todo está seco | D124: en sentido comparativo
A125: 125 | B125: Luisa tan poco a llamado | C125: Luisa tampoco ha llamado | D125: adverbio
A126: 126 | B126: tanpoco | C126: tampoco | D126: antes de b y p (m) pondré
A127: 127 | B127: la aldea a donde vamos no tiene luz | C127: la aldea adonde vamos no tiene luz | D127: al lugar que...( la aldea al lugar que vamos...)
A128: 128 | B128: ¿ adonde iremos el lunes? | C128: ¿ adónde iremos el lunes ? | D128: ¿a qué lugar? En interrogación
A129: 129 | B129: tenia una erida por asta de toro | C129: tenía una herida por asta de toro | D129: (asta de toro) hasta preposición llegaron hasta la cumbre
A130: 130 | B130: llegaron asta la cumbre | C130: llegaron hasta la cumbre | D130: preposición ( asta de toro)
A131: =A130+1 -> 131 | B131: llegaron todos los paquetes, aun los mas grandes | C131: llegaron todos los paquetes, aun los más grandes | D131: hasta, también (hasta los más grandes) (también los más grandes)
A132: 132 | B132: aun estamos en Madrid | C132: aún estamos en Madrid | D132: todavía (todavía estemos en Madrid)
A133: 133 | B133: pondremos el equipaje en la vaca | C133: pondremos el equipaje en la baca | D133: baca del autómovil ( la vaca da leche)
A134: 134 | B134: ese mueble no cabe en la abitacion | C134: ese mueble no cabe en la habitación | D134: (cabe) del verbo caber (cave) del vervo cavar
A135: 135 | B135: el mes de enero | C135: el mes de enero | D135: (de) preposición (dé) del verbo dar
A136: 136 | B136: dile a Ricardo que de la calefaccion | C136: dile a Ricardo que dé la calefacción | D136: (dé) del verbo dar
A137: 137 | B137: el Viejo y el Mar | C137: el Viejo y el Mar | D137: (el) artículo
A138: 138 | B138: no se lo entreges a el | C138: no se lo entregues a él | D138: (él) Pronombre personal
A139: 139 | B139: el fue el que lo hizo | C139: él fue el que lo hizo | D139: (él) sustituye al nombre (el) artículo
A140: 140 | B140: este armario necesita pintarse | C140: este armario necesita pintarse | D140: adjetivo demostrativo (este ese aquel etc.)
A141: 141 | B141: esta abitacion es luminosa | C141: esta habitación es luminosa | D141: adjetivo demostrativo (este ese aquel etc.)
A142: 142 | B142: la maquina numero tres es nueva; esta habria que repararla | C142: La máquina número tres es nueva; ésta habría que repararla | D142: (ésta) pronombre demostrativo (ésta, ésa, aquélla etc.)
A143: 143 | B143: ese panel esta torcido | C143: ese panel está torcido | D143: adjetivo demostrativo
A144: 144 | B144: la cartera marron es de Jacinto; esa de Miguel | C144: la cartera marrón es de Jacinto; esa de Miguel | D144: (ésa) pronombre demostrativo
A145: 145 | B145: me mandaron un sobre, mas no lo recibi | C145: me mandaron un sobre, mas no lo recibí | D145: (mas) pero (pero no lo recibí)
A146: 146 | B146: no envies mas bultos | C146: no envíes más bultos | D146: (más) cantidad (más bultos)
A147: 147 | B147: mi ermano es menor que yo | C147: mi hermano es menor que yo | D147: (mi) posesivo, admite cambios al plural (mis hermanos)
A148: 148 | B148: debes contarmelo a mi | C148: debes contármelo a mí | D148: (mi) pronombre personal ( no admite plural)
A149: 149 | B149: se dice que no llegaremos a tiempo | C149: se dice que no llegaremos a tiempo | D149: (se) en frase de tono impersonal
A150: 150 | B150: lo que me preguntas no lo se | C150: lo que me preguntas no lo sé | D150: (sé) verbo saber y ser
A151: 151 | B151: se una buena persona | C151: sé una buena persona | D151: (sé) verbo saber y ser
A152: 152 | B152: desconozco si lo han mandado | C152: desconozco si lo han mandado | D152: (si) para expresar una condición o duda
A153: 153 | B153: si lo deseas, lo consegiras | C153: si lo deseas, lo conseguirás | D153: (si) para expresar una condición o duda
A154: 154 | B154: dijo que si lo haria | C154: dijo que sí lo haría | D154: (sí) afiramción, pronombre personal
A155: 155 | B155: ablaba para si mismo | C155: hablaba para sí mismo | D155: (sí) afiramción, pronombre personal
A156: 156 | B156: habia un solo violin en la orquesta | C156: había un solo violín en la orquesta | D156: (solo) único sin compañia
A157: 157 | B157: el banco estava solo, nadie lo ocupaba | C157: el banco estaba solo, nadie lo ocupaba | D157: (solo) único sin compañia
A158: 158 | B158: te digo solo una cosa | C158: te digo sólo una cosa | D158: (sólo) solamente unicamente (te digo solamente una cosa)
A159: 159 | B159: tu pueblo es muy grande | C159: tu pueblo es muy grande | D159: (tu) posesivo (tú) pronobre personal (tú lo has querido así
A160: 160 | B160: tu lo as querido asi | C160: tú lo has querido así | D160: (tú) pronombre personal (referiéndose a él)
A161: 161 | B161: el tubo de escape se rompio | C161: el tubo de escape se rompió | D161: (tubo) pieza cilíndrica hueca
A162: 162 | B162: la empresa tubo muchos problemas | C162: la empresa tuvo muchos problemas | D162: (tuvo) del verbo tener
A163: 163 | B163: arbol | C163: árbol
A164: 164 | B164: caracteristico | C164: característico
A165: 165 | B165: cranero | C165: cráneo
A166: 166 | B166: estabamos | C166: estábamos
A167: 167 | B167: contabamos | C167: contábamos
A168: 168 | B168: el general animo a sus tropas dandoles animo | C168: el general animó a sus tropas dándoles ánimo
A169: 169 | B169: recomendaras al interprete que interprete bien la conferencia | C169: recomendarás intérprete
A170: 170 | B170: da lastima ver como se lastima el trabajador en la fundiccion | C170: da lástima ver como se lastíma el trabajador en la fundición
A171: 171 | B171: el mecanico a reparado la dinamo | C171: el mecánico ha reparado la dinamo
A172: 172 | B172: en estos arboles | C172: en estos árboles
A173: 173 | B173: aun no he comido | C173: aún no he comido | D173: no se acentúa cuando puede sustituirse por (todavía ,hasta, también o inclusive) todavía no he comido
A174: 174 | B174: quiero mas carbon | C174: quiero más carbón | D174: lleva acento cuando es adverbio de cantidad o comparación o nombre el más y el menos
A175: 175 | B175: dame esto más no aquello | C175: dame esto mas no aquello | D175: no se acentúa cuando es conjunción. En tal cso puede substituirse por (pero) dame esto pero no aquello
A176: 176 | B176: a venido el pero no ella | C176: ha venido él pero no ella | D176: se acentúa cuando es pronombre personal, o sea, cuando substituye al nombre
A177: 177 | B177: el nos lo dijo | C177: él nos lo dijo | D177: se acentúa cuando es pronombre personal, o sea, cuando substituye al nombre
A178: 178 | B178: toma el jugete y el lapiz | C178: toma el juguete y el lápiz | D178: no se acentúa cuando es artículo, o sea cuando acompaña al nombre
A179: 179 | B179: tu no puedes resolver el poblema | C179: tú no puedes resolver el problema | D179: se acentúa cuando es pronombre personal, o sea cuando acompaña al nombre
A180: 180 | B180: tu caza tiene seis pisos | C180: tu casa tiene seis pisos | D180: (tu) no se acentúa cuando es adjetivo posesivo y, por lo tanto, acompaña al nombre
A181: 181 | B181: esto es para mi y no para ti | C181: esto es para mí y no para ti | D181: (mi) se acentúa cuando es pronombre (ti) no se acentúa nunca
A182: 182 | B182: ven luego a mí casa | C182: ven luego a mi casa | D182: no se acentúa cuando es adjetivo posesivo o nota musical
A183: 183 | B183: esta nota se llama mí | C183: esta nota se llama mi | D183: no se acentúa cuando es adjetivo posesivo o nota musical
A184: 184 | B184: me lo dijo este | C184: me lo dijo éste | D184: se acentúan normalmente cuando son pronombres demostrativos,o sea, cuando sustituyen al nombre
A185: 185 | B185: aquel que vino es mi ermano | C185: aquel que vino es mi hermano | D185: no se acentúa cuando el pronombre puede substituirse por el artículo (el) (la)
A186: 186 | B186: aquella ultima es mi prima | C186: aquella última es mi prima | D186: no se acentúa cuando el pronombre puede substituirse por el artículo (el) (la) (las)
A187: 187 | B187: aquellos que sepan la leccion tendran un premio | C187: aquellos que sepan la lección tendrán un premio | D187: no se acentúa cuando el pronombre puede substituirse por el artículo (el) (la) (las) (los)
A188: 188 | B188: este de oy no me gusta | C188: éste de hoy no me gusta | D188: no se acentúa cuando el pronombre puede substituirse por el artículo (el) (la) (las) (los)
A189: 189 | B189: subtituirse | C189: substituirse
A190: 190 | B190: este libro, ese lapiz y aquellos relojes son mios | C190: este libro, ese lápiz y aquellos relojes son mios | D190: (este) no lleva acento cuando son adjetivos demostrativos, o sea cuando acompañan al nombre
A191: 191 | B191: dame estos papeles | C191: dame estos papeles | D191: (estos) no lleva acento cuando son adjetivos demostrativos, o sea cuando acompañan al nombre
A192: 192 | B192: toma aquellas carpetas | C192: toma aquellas carpetas | D192: (aquellas) no lleva acento cuando son adjetivos demostrativos, o sea cuando acompañan al nombre
A193: 193 | B193: esto es mio | C193: esto es mio | D193: esto, eso y aquello no se acentúa
A194: 194 | B194: acentua | C194: acentúa
A195: =A194+1 -> 195 | B195: yo no se lo que quieres decir | C195: yo no sé lo que quieres decir | D195: (sé) lleva acento cuando es verbo ( ser o saber )
A196: 196 | B196: se estudiosa | C196: sé estudiosa | D196: (sé) lleva acento cuando es verbo ( ser o saber )
A197: 197 | B197: ella se puso a estudiar y se entusiasmo | C197: ella se puso ha estudiar y se entusiasmó | D197: (se) no lleva acento cuando es pronombre
A198: 198 | B198: no se inscribieron mas | C198: no se inscribieron más | D198: (se) no lleva acento cuando es pronombre
A199: 199 | B199: no se como an podido realizar esto | C199: no sé como han podido realizar esto | D199: (sé) lleva acento cuando es verbo ( ser o saber )
A200: 200 | B200: se bueno y obtendras lo que deseas | C200: sé bueno y obtendrás lo que deseas | D200: (sé) lleva acento cuando es verbo ( ser o saber )
... 1137 more rows

Sheet ESCRITURA
J1: habilitar este contenido | N1: junio del 2010 por joannostro
A2: =VLOOKUP(W10,apuntes!A1:D999,4,FALSE) -> lleva acento cuando es verbo (ser o saber)
A3: =VLOOKUP(W10,apuntes!A1:D999,3,FALSE) -> yo no sé lo que quiere decir
A6: =VLOOKUP(W10,apuntes!A1:D999,2,FALSE) -> yo no se lo que quiere decir
X8: u
J9: celda escritura | W9: =RANDBETWEEN(1,235) -> 208
W10: 44
A15: respuesta

Sheet repaso (hidden)
A1: http://usuarios.multimania.es/joannostro | J1: habilitar este contenido | N1: junio del 2010 por joannostro | T1: http://sonyo.iespana.es
A2: =VLOOKUP(V11,apuntes!A1:D999,4,FALSE) -> (con qué ) se escribe separado y con acento cuando está en sentido ¿? ¡! O enfático
A3: =VLOOKUP(V11,apuntes!A1:D999,3,FALSE) -> dime con qué has hecho esto
A4: escribe los fallos de escritura o completar palabra
A6: =VLOOKUP(V11,apuntes!A1:D235,2,FALSE) -> dime con que as echo esto
X8: u
J9: celda escritura | W9: =RANDBETWEEN(1,235) -> 73
W10: 165
V11: 233
V12: 1
A15: respuesta
